fUSD/lending_fUSD_20260404
["ID","MTS","AMOUNT","RATE_DAILY","PERIOD"]
[419728588,1775341847073,-544.75,0.00015498,2]
[419728589,1775341847084,-500.0,0.00015498,2]
[419728590,1775341847094,-702.94,0.00015498,2]
[419728591,1775341847104,-150.0,0.00015499,2]
[419728592,1775341847114,-150.0,0.00015499,2]
[419728593,1775341847124,-509.0,0.000155,4]
[419728594,1775341847133,-768.85683146,0.000155,3]
[419728595,1775341847143,-1231.35459603,0.000155,2]
[419728596,1775341847153,-150.0,0.000155,2]
[419728597,1775341847163,-150.0,0.000155,2]
[419728598,1775341847173,-2000.0,0.00015501,2]
[419728599,1775341847183,-4000.0,0.00015507,2]
[419728600,1775341847192,-150.0,0.00015508,2]
[419728601,1775341847202,-150.0,0.00015508,2]
[419728602,1775341847212,-150.0,0.00015515,2]
[419728603,1775341847222,-200.0,0.00015515,2]
[419728604,1775341847231,-1048.1765019,0.00015515,2]
[419728605,1775341847241,-181.08010149,0.00015515,2]
[419728606,1775341847250,-500.0,0.00015517,2]
[419728607,1775341847260,-151.0,0.00015517,2]
[419728608,1775341847270,-150.0,0.00015518,2]
[419728609,1775341847281,-3826.0,0.00015519,2]
[419728610,1775341847291,-150.0,0.00015522,2]
[419728611,1775341847301,-150.0,0.00015526,2]
[419728612,1775341847311,-350.0,0.00015527,2]
[419728613,1775341847321,-614.91,0.0001553,2]
[419728614,1775341847331,-584.91992494,0.0001553,2]
[419728615,1775341847341,-7683.41588999,0.00015531,2]
[419728616,1775341847351,-150.0,0.00015532,2]
[419728617,1775341847361,-150.0,0.00015533,2]
[419728618,1775341847371,-150.0,0.00015533,2]
[419728619,1775341847382,-150.0,0.00015537,2]
[419728620,1775341847391,-150.0,0.00015539,2]
[419728621,1775341847402,-150.0,0.00015546,2]
[419728622,1775341847412,-150.0,0.00015557,2]
[419728623,1775341847422,-150.0,0.00015557,2]
[419728624,1775341847432,-2000.0,0.00015558,2]
[419728625,1775341847442,-150.0,0.00015564,2]
[419728626,1775341847453,-150.0,0.00015567,2]
[419728627,1775341847463,-150.0,0.00015567,2]
[419728628,1775341847472,-150.0,0.00015569,2]
[419728629,1775341847482,-150.0,0.0001557,2]
[419728630,1775341847491,-150.0,0.00015573,2]
[419728631,1775341847502,-150.0,0.00015576,2]
[419728632,1775341847512,-150.0,0.00015582,2]
[419728633,1775341847523,-150.0,0.00015585,2]
[419728634,1775341847533,-150.0,0.00015588,2]
[419728635,1775341847544,-150.0,0.00015594,2]
[419728636,1775341847554,-150.0,0.00015595,2]
[419728637,1775341847564,-3826.0,0.00015598,2]
[419728638,1775341847574,-3826.0,0.00015598,2]
[419728639,1775341847585,-150.0,0.000156,2]
[419728640,1775341847595,-150.0,0.000156,2]
[419728641,1775341847605,-150.0,0.000156,2]
[419728642,1775341847615,-500.0,0.000156,2]
[419728643,1775341847625,-2000.0,0.00015601,2]
[419728644,1775341847635,-150.0,0.00015606,2]
[419728645,1775341847645,-36824.60995708,0.00015612,2]
[419728646,1775341847654,-150.0,0.00015612,2]
[419728647,1775341847665,-150.0,0.00015614,2]
[419728648,1775341847675,-4972.0,0.00015616,2]
[419728649,1775341847685,-150.0,0.00015618,2]
[419728650,1775341847694,-150.0,0.00015631,2]
[419728651,1775341847704,-150.0,0.00015631,2]
[419728652,1775341847714,-150.0,0.00015633,2]
[419728653,1775341847724,-150.0,0.00015633,2]
[419728654,1775341847743,-150.0,0.00015634,2]
[419728655,1775341847755,-3826.0,0.00015634,2]
[419728656,1775341847765,-150.0,0.00015636,2]
[419728657,1775341847775,-150.0,0.00015642,2]
[419728658,1775341847786,-150.0,0.00015644,2]
[419728659,1775341847796,-3826.0,0.00015649,2]
[419728660,1775341847806,-150.0,0.00015653,2]
[419728661,1775341847816,-150.0,0.00015655,2]
[419728662,1775341847826,-150.0,0.00015661,2]
[419728663,1775341847836,-1115.92139421,0.00015664,2]
[419728664,1775341847847,-2500.0,0.00015664,2]
[419728665,1775341847857,-2500.0,0.00015664,2]
[419728666,1775341847868,-561.25077082,0.00015664,2]
[419728667,1775341847878,-150.0,0.00015666,2]
[419728668,1775341847889,-150.0,0.00015667,2]
[419728669,1775341847899,-150.0,0.00015667,2]
[419728670,1775341847909,-3826.0,0.00015668,2]
[419728671,1775341847918,-150.0,0.00015672,2]
[419728672,1775341847929,-150.0,0.0001568,2]
[419728673,1775341847940,-150.0,0.0001568,2]
[419728674,1775341847950,-150.0,0.00015685,2]
[419728675,1775341847961,-150.0,0.0001569,2]
[419728676,1775341847971,-150.0,0.00015692,2]
[419728677,1775341847981,-150.0,0.00015692,2]
[419728678,1775341847992,-150.0,0.000157,2]
[419728679,1775341848002,-150.0,0.000157,2]
[419728680,1775341848012,-800.0,0.000157,5]
[419728681,1775341848022,-300.0,0.000157,5]
[419728682,1775341848032,-2000.0,0.00015701,2]
[419728683,1775341848042,-150.0,0.00015704,2]
[419728684,1775341848051,-150.0,0.00015705,2]
[419728685,1775341848061,-150.0,0.00015709,2]
[419728686,1775341848071,-150.0,0.00015711,2]
[419728687,1775341848081,-150.0,0.00015713,2]
[419728688,1775341848091,-532.19,0.00015719,2]
[419728689,1775341848101,-532.19,0.00015719,2]
[419728690,1775341848112,-532.19,0.00015719,2]
[419728691,1775341848122,-532.19,0.00015719,2]
[419728692,1775341848132,-532.28319663,0.00015719,2]
[419728693,1775341848141,-102159.95188267,0.0001572,2]
[419728694,1775341848151,-350.0,0.00015726,2]
[419728695,1775341848161,-150.0,0.00015729,2]
[419728696,1775341848172,-150.0,0.0001573,2]
[419728697,1775341848182,-150.0,0.00015733,2]
[419728698,1775341848193,-150.0,0.00015733,2]
[419728699,1775341848203,-150.0,0.00015733,2]
[419728700,1775341848213,-150.0,0.00015737,2]
[419728701,1775341848223,-150.0,0.00015749,2]
[419728702,1775341848233,-151.0,0.00015753,2]
[419728703,1775341848243,-151.0,0.00015753,2]
[419728704,1775341848252,-151.0,0.00015753,2]
[419728705,1775341848262,-151.0,0.00015753,2]
[419728706,1775341848272,-151.0,0.00015753,2]
[419728707,1775341848282,-245.407609,0.00015753,2]
[419728708,1775341848292,-4633.08,0.00015753,2]
[419728709,1775341848302,-150.0,0.00015754,2]
[419728710,1775341848312,-150.0,0.00015754,2]
[419728711,1775341848322,-150.0,0.00015758,2]
[419728712,1775341848332,-150.0,0.00015761,2]
[419728713,1775341848343,-150.0,0.00015763,2]
[419728714,1775341848353,-150.0,0.00015767,2]
[419728715,1775341848363,-150.0,0.00015767,2]
[419728716,1775341848373,-150.0,0.00015769,2]
[419728717,1775341848383,-150.0,0.00015778,2]
[419728718,1775341848394,-1538.701433,0.00015779,2]
[419728719,1775341848404,-150.0,0.00015782,2]
[419728720,1775341848414,-150.0,0.00015785,2]
[419728721,1775341848424,-150.0,0.00015787,2]
[419728727,1775341848610,-150.0,0.00015788,2]
[419728729,1775341848619,-350.0,0.00015791,2]
[419728731,1775341848629,-170.24526713,0.000158,2]
[419728732,1775341848638,-150.0,0.000158,2]
[419728734,1775341848648,-150.0,0.000158,2]
[419728736,1775341848658,-800.0,0.000158,5]
[419728738,1775341848667,-300.0,0.000158,5]
[419728741,1775341848678,-2000.0,0.00015801,2]
[419728743,1775341848687,-150.0,0.00015803,2]
[419728744,1775341848698,-150.0,0.00015806,2]
[419728747,1775341848708,-350.0,0.00015807,2]
[419728749,1775341848718,-150.0,0.00015807,2]
[419728751,1775341848728,-4972.0,0.00015808,2]
[419728753,1775341848737,-150.0,0.00015809,2]
[419728755,1775341848746,-150.0,0.00015815,2]
[419728756,1775341848756,-150.0,0.00015822,2]
[419728758,1775341848765,-150.0,0.00015827,2]
[419728760,1775341848774,-500.0,0.00015827,2]
[419728762,1775341848783,-500.0,0.00015827,2]
[419728764,1775341848792,-500.0,0.00015827,2]
[419728766,1775341848802,-500.0,0.00015827,2]
[419728768,1775341848811,-500.0,0.00015827,2]
[419728770,1775341848820,-500.0,0.00015827,2]
[419728771,1775341848830,-500.0,0.00015827,2]
[419728772,1775341848839,-544.75,0.00015827,2]
[419728773,1775341848849,-500.0,0.00015827,2]
[419728774,1775341848858,-702.94,0.00015827,2]
[419728775,1775341848868,-150.0,0.00015828,2]
[419728776,1775341848878,-150.0,0.0001583,2]
[419728777,1775341848888,-150.0,0.00015833,2]
[419728778,1775341848897,-150.0,0.00015833,2]
[419728779,1775341848907,-150.0,0.00015833,2]
[419728781,1775341848916,-614.91,0.00015839,2]
[419728783,1775341848925,-614.91,0.00015839,2]
[419728785,1775341848934,-614.91,0.00015839,2]
[419728787,1775341848944,-614.91,0.00015839,2]
[419728789,1775341848953,-615.09,0.00015839,2]
[419728791,1775341848962,-2000.0,0.0001584,2]
[419728793,1775341848971,-2000.0,0.0001584,2]
[419728794,1775341848980,-2000.0,0.0001584,2]
[419728796,1775341848990,-150.0,0.00015846,2]
[419728799,1775341849000,-150.0,0.00015852,2]
[419728800,1775341849009,-150.0,0.00015855,2]
[419728802,1775341849018,-150.0,0.00015857,2]
[419728804,1775341849028,-200.0,0.00015859,2]
[419728806,1775341849038,-2999.979371,0.0001586,2]
[419728808,1775341849047,-150.0,0.00015865,2]
[419728811,1775341849057,-150.0,0.00015867,2]
[419728812,1775341849066,-150.0,0.00015867,2]
[419728814,1775341849075,-500.0,0.00015873,2]
[419728816,1775341849086,-500.0,0.00015873,2]
[419728818,1775341849095,-500.0,0.00015873,2]
[419728821,1775341849105,-500.0,0.00015873,2]
[419728822,1775341849115,-150.0,0.00015877,2]
[419728824,1775341849125,-150.0,0.00015877,2]
[419728826,1775341849135,-150.0,0.00015879,2]
[419728828,1775341849144,-150.0,0.00015881,2]
[419728831,1775341849154,-150.0,0.00015881,2]
[419728833,1775341849163,-150.0,0.00015884,2]
[419728835,1775341849172,-500.0,0.0001589,2]
[419728836,1775341849183,-519.17533645,0.0001589,2]
[419728838,1775341849192,-2000.0,0.0001589,2]
[419728840,1775341849201,-150.0,0.00015893,2]
[419728842,1775341849210,-4000.0,0.00015895,2]
[419728844,1775341849219,-500.0,0.00015899,2]
[419728846,1775341849227,-500.0,0.00015899,2]
[419728848,1775341849237,-500.0,0.00015899,2]
[419728850,1775341849245,-500.0,0.00015899,2]
[419728852,1775341849254,-500.0,0.00015899,2]
[419728854,1775341849264,-500.0,0.00015899,2]
[419728856,1775341849273,-500.0,0.00015899,2]
[419728858,1775341849283,-500.0,0.00015899,2]
[419728860,1775341849293,-500.0,0.00015899,2]
[419728862,1775341849302,-500.0,0.00015899,2]
[419728864,1775341849313,-500.0,0.00015899,2]
[419728866,1775341849323,-500.0,0.00015899,2]
[419728868,1775341849332,-500.0,0.00015899,2]
[419728871,1775341849342,-500.0,0.00015899,2]
[419728872,1775341849351,-500.0,0.00015899,2]
[419728874,1775341849361,-500.0,0.00015899,2]
[419728876,1775341849370,-500.0,0.00015899,2]
[419728878,1775341849379,-500.0,0.00015899,2]
[419728880,1775341849389,-500.0,0.00015899,2]
[419728882,1775341849399,-500.0,0.00015899,2]
[419728885,1775341849409,-500.0,0.00015899,2]
[419728886,1775341849419,-500.0,0.00015899,2]
[419728888,1775341849428,-500.0,0.00015899,2]
[419728890,1775341849437,-500.0,0.00015899,2]
[419728892,1775341849446,-500.0,0.00015899,2]
[419728894,1775341849456,-500.0,0.00015899,2]
[419728896,1775341849465,-500.0,0.00015899,2]
[419728898,1775341849475,-500.0,0.00015899,2]
[419728901,1775341849484,-500.0,0.00015899,2]
[419728903,1775341849494,-500.0,0.00015899,2]
[419728904,1775341849503,-500.0,0.00015899,2]
[419728907,1775341849513,-500.0,0.00015899,2]
[419728908,1775341849522,-500.0,0.00015899,2]
[419728911,1775341849532,-500.0,0.00015899,2]
[419728912,1775341849542,-500.0,0.00015899,2]
[419728914,1775341849552,-500.0,0.00015899,2]
[419728916,1775341849561,-500.0,0.00015899,2]
[419728919,1775341849571,-242.62789815,0.00015899,2]
[419728921,1775341849580,-604.90515633,0.000159,2]
[419728922,1775341849590,-150.0,0.000159,2]
[419728924,1775341849599,-755.0,0.000159,2]
[419728926,1775341849608,-150.0,0.000159,2]
[419728928,1775341849617,-150.0,0.000159,2]
[419728930,1775341849626,-176.92215124,0.000159,2]
[419728932,1775341849636,-150.0,0.000159,2]
[419728934,1775341849646,-150.0,0.000159,2]
[419728936,1775341849655,-150.0,0.000159,2]
[419728938,1775341849664,-150.0,0.000159,2]
[419728940,1775341849674,-150.0,0.000159,2]
[419728943,1775341849683,-150.0,0.000159,2]
[419728945,1775341849693,-800.0,0.000159,5]
[419728947,1775341849703,-300.0,0.000159,5]
[419728949,1775341849712,-150.0,0.000159,2]
[419728950,1775341849722,-36824.60995708,0.000159,2]
[419728952,1775341849731,-7683.41588999,0.000159,2]
[419728954,1775341849740,-2000.0,0.00015901,2]
[419728956,1775341849749,-150.0,0.00015902,2]
[419728958,1775341849758,-150.0,0.00015903,2]
[419728960,1775341849768,-150.0,0.00015904,2]
[419728962,1775341849778,-150.0,0.00015904,2]
[419728964,1775341849787,-150.0,0.00015923,2]
[419728965,1775341849796,-150.0,0.00015926,2]
[419728967,1775341849806,-785.54,0.00015927,2]
[419728969,1775341849816,-150.0,0.00015927,2]
[419728971,1775341849826,-150.0,0.00015928,2]
[419728973,1775341849835,-150.0,0.00015933,2]
[419728974,1775341849845,-150.0,0.00015933,2]
[419728976,1775341849855,-150.0,0.00015938,2]
[419728978,1775341849865,-150.0,0.00015941,2]
[419728980,1775341849874,-150.0,0.00015942,2]
[419728981,1775341849883,-151.0,0.00015944,2]
[419728983,1775341849892,-500.0,0.00015946,2]
[419728985,1775341849902,-500.0,0.00015946,2]
[419728986,1775341849912,-213.1591402,0.00015946,2]
[419728988,1775341849921,-500.0,0.00015946,2]
[419728990,1775341849930,-500.0,0.00015946,2]
[419728992,1775341849939,-398.43669082,0.00015946,2]
[419728993,1775341849948,-544.75,0.00015946,2]
[419728995,1775341849958,-500.0,0.00015946,2]
[419728997,1775341849967,-702.94,0.00015946,2]
[419728998,1775341849976,-31790.3448793,0.00015947,2]
[419729000,1775341849985,-15981.2779474,0.00015947,2]
[419729002,1775341849994,-151.0,0.00015947,2]
[419729004,1775341850003,-151.0,0.00015947,2]
[419729006,1775341850012,-151.0,0.00015947,2]
[419729007,1775341850021,-158.253096,0.00015947,2]
[419729009,1775341850031,-151.0,0.00015947,2]
[419729011,1775341850040,-165.277003,0.00015947,2]
[419729013,1775341850050,-151.0,0.00015947,2]
[419729014,1775341850059,-151.0,0.00015947,2]
[419729016,1775341850068,-150.0,0.00015951,2]
[419729018,1775341850077,-150.0,0.00015952,2]
[419729020,1775341850086,-150.0,0.00015952,2]
[419729021,1775341850095,-4761.97719213,0.0001596,2]
[419729023,1775341850104,-150.0,0.00015961,2]
[419729025,1775341850114,-150.0,0.00015967,2]
[419729027,1775341850123,-150.0,0.00015967,2]
[419729028,1775341850132,-869.0,0.00015973,2]
[419729030,1775341850142,-500.0,0.00015973,2]
[419729032,1775341850151,-500.0,0.00015973,2]
[419729034,1775341850160,-500.0,0.00015973,2]
[419729036,1775341850169,-307.35572359,0.00015973,2]
[419729037,1775341850179,-500.0,0.00015973,2]
[419729039,1775341850188,-500.0,0.00015973,2]
[419729041,1775341850198,-500.0,0.00015973,2]
[419729043,1775341850207,-165.64274187,0.00015973,2]
[419729044,1775341850216,-419.81066253,0.00015973,2]
[419729046,1775341850225,-385.69863661,0.00015973,2]
[419729048,1775341850235,-503.37341793,0.00015973,2]
[419729050,1775341850244,-500.0,0.00015973,2]
[419729052,1775341850253,-501.1834914,0.00015973,2]
[419729053,1775341850263,-500.0,0.00015973,2]
[419729055,1775341850272,-500.0,0.00015973,2]
[419729057,1775341850282,-500.0,0.00015973,2]
[419729059,1775341850293,-500.0,0.00015973,2]
[419729061,1775341850302,-500.0,0.00015973,2]
[419729063,1775341850311,-500.0,0.00015973,2]
[419729065,1775341850321,-500.0,0.00015973,2]
[419729066,1775341850330,-500.0,0.00015973,2]
[419729068,1775341850340,-518.91238386,0.00015973,2]
[419729070,1775341850349,-500.0,0.00015973,2]
[419729072,1775341850358,-500.0,0.00015973,2]
[419729074,1775341850368,-178.83121777,0.00015973,2]
[419729075,1775341850377,-500.0,0.00015973,2]
[419729077,1775341850386,-500.0,0.00015973,2]
[419729079,1775341850397,-500.0,0.00015973,2]
[419729081,1775341850406,-500.0,0.00015973,2]
[419729083,1775341850416,-500.0,0.00015973,2]
[419729084,1775341850426,-500.0,0.00015973,2]
[419729086,1775341850436,-500.0,0.00015973,2]
[419729088,1775341850446,-500.0,0.00015973,2]
[419729090,1775341850455,-500.0,0.00015973,2]
[419729092,1775341850464,-312.69903259,0.00015973,2]
[419729093,1775341850473,-500.0,0.00015973,2]
[419729095,1775341850483,-500.0,0.00015973,2]
[419729097,1775341850493,-500.0,0.00015973,2]
[419729099,1775341850502,-500.0,0.00015973,2]
[419729101,1775341850511,-500.0,0.00015973,2]
[419729103,1775341850521,-202.5903212,0.00015973,2]
[419729104,1775341850531,-500.0,0.00015973,2]
[419729106,1775341850541,-500.0,0.00015973,2]
[419729108,1775341850551,-500.0,0.00015973,2]
[419729110,1775341850561,-152.1260409,0.00015973,2]
[419729112,1775341850571,-383.787478,0.00015973,2]
[419729114,1775341850581,-383.787478,0.00015973,2]
[419729116,1775341850590,-383.787478,0.00015973,2]
[419729117,1775341850600,-383.787478,0.00015973,2]
[419729119,1775341850609,-459.12947,0.00015973,2]
[419729121,1775341850619,-459.12947,0.00015973,2]
[419729123,1775341850629,-459.12947,0.00015973,2]
[419729125,1775341850639,-459.12947,0.00015973,2]
[419729127,1775341850648,-1000.0,0.00015973,2]
[419729128,1775341850658,-1000.0,0.00015973,2]
[419729130,1775341850668,-991.281,0.00015973,2]
[419729132,1775341850678,-150.0,0.00015975,2]
[419729134,1775341850688,-150.0,0.00015976,2]
[419729136,1775341850698,-150.0,0.00015976,2]
[419729138,1775341850708,-150.0,0.00015981,2]
[419729140,1775341850717,-170.97051199,0.00015984,2]
[419729141,1775341850726,-200.77350485,0.00015984,2]
[419729143,1775341850737,-1192.29941814,0.0001599,2]
[419729145,1775341850746,-151.0,0.00015997,2]
[419729147,1775341850756,-666.0,0.00015999,2]
[419729149,1775341850766,-666.0,0.00015999,2]
[419729151,1775341850776,-500.0,0.00015999,2]
[419729153,1775341850786,-500.0,0.00015999,2]
[419729155,1775341850795,-500.0,0.00015999,2]
[419729156,1775341850805,-500.0,0.00015999,2]
[419729158,1775341850815,-500.0,0.00015999,2]
[419729160,1775341850825,-529.28576111,0.00015999,2]
[419729161,1775341850835,-500.0,0.00015999,2]
[419729162,1775341850845,-500.0,0.00015999,2]
[419729163,1775341850856,-500.0,0.00015999,2]
[419729164,1775341850866,-500.0,0.00015999,2]
[419729165,1775341850876,-500.0,0.00015999,2]
[419729166,1775341850887,-500.0,0.00015999,2]
[419729167,1775341850897,-500.0,0.00015999,2]
[419729168,1775341850907,-500.0,0.00015999,2]
[419729169,1775341850917,-431.42104867,0.00015999,2]
[419729170,1775341850927,-500.0,0.00015999,2]
[419729171,1775341850937,-500.0,0.00015999,2]
[419729173,1775341850948,-500.0,0.00015999,2]
[419729175,1775341850957,-500.0,0.00015999,2]
[419729177,1775341850967,-500.0,0.00015999,2]
[419729179,1775341850977,-500.0,0.00015999,2]
[419729181,1775341850987,-500.0,0.00015999,2]
[419729183,1775341850997,-500.0,0.00015999,2]
[419729185,1775341851006,-500.0,0.00015999,2]
[419729187,1775341851016,-500.0,0.00015999,2]
[419729189,1775341851026,-500.0,0.00015999,2]
[419729191,1775341851037,-500.0,0.00015999,2]
[419729193,1775341851047,-500.0,0.00015999,2]
[419729195,1775341851056,-374.94,0.00015999,2]
[419729197,1775341851066,-475.31700749,0.00015999,2]
[419729200,1775341851076,-799.573864,0.00015999,2]
[419729202,1775341851087,-799.573864,0.00015999,2]
[419729204,1775341851097,-799.573864,0.00015999,2]
[419729206,1775341851107,-799.573864,0.00015999,2]
[419729208,1775341851116,-544.75,0.00015999,2]
[419729210,1775341851126,-544.75,0.00015999,2]
[419729212,1775341851136,-544.75,0.00015999,2]
[419729214,1775341851145,-544.75,0.00015999,2]
[419729216,1775341851155,-544.75,0.00015999,2]
[419729218,1775341851165,-544.75,0.00015999,2]
[419729220,1775341851174,-544.75,0.00015999,2]
[419729222,1775341851183,-544.75,0.00015999,2]
[419729224,1775341851193,-544.75,0.00015999,2]
[419729226,1775341851202,-544.75,0.00015999,2]
[419729228,1775341851211,-544.75,0.00015999,2]
[419729230,1775341851221,-544.75,0.00015999,2]
[419729232,1775341851231,-544.75,0.00015999,2]
[419729234,1775341851241,-544.75,0.00015999,2]
[419729236,1775341851251,-544.75,0.00015999,2]
[419729238,1775341851261,-544.75,0.00015999,2]
[419729240,1775341851270,-544.75,0.00015999,2]
[419729242,1775341851280,-544.92994436,0.00015999,2]
[419729244,1775341851289,-561.59815036,0.00015999,2]
[419729246,1775341851299,-702.94,0.00015999,2]
[419729248,1775341851309,-702.94,0.00015999,2]
[419729250,1775341851318,-702.94,0.00015999,2]
[419729252,1775341851328,-702.94,0.00015999,2]
[419729254,1775341851338,-702.94,0.00015999,2]
[419729256,1775341851348,-702.94,0.00015999,2]
[419729258,1775341851357,-702.94,0.00015999,2]
[419729261,1775341851367,-702.94,0.00015999,2]
[419729263,1775341851377,-702.94,0.00015999,2]
[419729265,1775341851387,-702.94,0.00015999,2]
[419729267,1775341851396,-702.94,0.00015999,2]
[419729269,1775341851405,-702.94,0.00015999,2]
[419729271,1775341851415,-702.94,0.00015999,2]
[419729273,1775341851424,-702.94,0.00015999,2]
[419729275,1775341851434,-702.94,0.00015999,2]
[419729277,1775341851444,-702.94,0.00015999,2]
[419729279,1775341851453,-702.94,0.00015999,2]
[419729281,1775341851463,-702.98459137,0.00015999,2]
[419729283,1775341851473,-150.0,0.00016,2]
[419729285,1775341851482,-150.0,0.00016,2]
[419729287,1775341851493,-150.0,0.00016,2]
[419729289,1775341851503,-150.0,0.00016,2]
[419729291,1775341851513,-150.0,0.00016,2]
[419729293,1775341851523,-150.0,0.00016,2]
[419729295,1775341851534,-150.0,0.00016,2]
[419729297,1775341851544,-150.0,0.00016,2]
[419729299,1775341851554,-150.0,0.00016,2]
[419729301,1775341851564,-150.0,0.00016,2]
[419729303,1775341851574,-150.0,0.00016,2]
[419729305,1775341851584,-150.0,0.00016,2]
[419729307,1775341851594,-5061805.30781765,0.00016,2]
[419729456,1775341853089,-5702.216164,0.00016,2]
[419729460,1775341853117,-745100.00501171,0.00016,2]
[419729660,1775343031944,-315.42809693,0.0001113,2]
[419729661,1775343031955,-1969.9903863,0.0001113,2]
[419729664,1775343032650,-1959.92151677,0.0001113,2]
[419729665,1775343032660,-665.19517588,0.00011481,2]
[419729666,1775343032668,-1200.0,0.00011579,2]
[419729667,1775343032678,-150.0,0.0001158,2]
[419729668,1775343032687,-300.0,0.0001158,2]
[419729669,1775343032696,-1200.0,0.0001158,2]
[419729670,1775343032706,-160.51,0.00011581,2]
[419729671,1775343032715,-200.0,0.00011581,2]
[419729672,1775343032723,-127744.07,0.00011581,2]
[419729673,1775343032732,-3740.13,0.00011581,2]
[419729674,1775343032742,-800.0,0.000117,4]
[419729675,1775343032751,-1700.0,0.000118,4]
[419729676,1775343032760,-4639.99,0.00011809,2]
[419729677,1775343032769,-49859.90177143,0.00011816,2]
[419729678,1775343032778,-2600.0,0.000119,4]
[419729679,1775343032787,-2500.0,0.00011916,2]
[419729680,1775343032796,-1060.4356,0.00011926,2]
[419729681,1775343032806,-586.69026607,0.00011973,2]
[419729682,1775343032814,-1207.23115265,0.00012015,3]
[419729683,1775343032823,-22934.55,0.00012015,2]
[419729684,1775343032832,-299.99,0.00012015,2]
[419729685,1775343032841,-8468.94026714,0.00012015,2]
[419729686,1775343032853,-1531.04973286,0.00012015,2]
[419729687,1775343032862,-4999.99,0.00012015,2]
[419729688,1775343032871,-9999.99,0.00012015,2]
[419729689,1775343032879,-140.05296804,0.00012015,2]
[419729690,1775343032891,-10.93703196,0.00012015,2]
[419729691,1775343032900,-431.55,0.00012015,2]
[419729692,1775343032909,-1266.82,0.00012015,2]
[419729693,1775343032918,-499.99,0.00012015,2]
[419729694,1775343032927,-3359.23,0.00012015,2]
[419729695,1775343032936,-1480.95,0.00012015,2]
[419729696,1775343032945,-300.0,0.00012015,2]
[419729697,1775343032954,-49859.90177136,0.00012016,2]
[419729698,1775343032964,-7022.14,0.00012016,2]
[419729699,1775343032974,-2999.35,0.00012016,2]
[419729700,1775343032983,-9999.99,0.00012016,2]
[419729701,1775343032993,-150.99,0.00012016,2]
[419729702,1775343033002,-9983.08298113,0.00012016,2]
[419729703,1775343033014,-93116.83701887,0.00012016,2]
[419729704,1775343033023,-29684.17,0.00012016,2]
[419729705,1775343033031,-889.11758555,0.00012016,2]
[419729706,1775343033040,-200.0,0.00012019,2]
[419729707,1775343033049,-151.0,0.00012019,2]
[419729708,1775343033059,-151.0,0.00012019,2]
[419729709,1775343033069,-151.0,0.00012019,2]
[419729710,1775343033079,-151.0,0.00012019,2]
[419729711,1775343033088,-151.0,0.00012019,2]
[419729712,1775343033097,-151.0,0.00012019,2]
[419729713,1775343033106,-151.0,0.00012019,2]